[Event "RUS-ch Men Blitz 2019"]
[Site "Sochi"]
[Date "2019.10.17"]
[Round "9.7"]
[White "Golubov, Saveliy"]
[Black "Nesterov, Arseniy"]
[Result "1/2-1/2"]
[ECO "D02"]
[WhiteElo "2469"]
[BlackElo "2484"]
[Annotator "ChessBase"]
[PlyCount "144"]
[EventDate "2019.10.17"]
[EventType "swiss"]
[EventCountry "RUS"]
[SourceTitle "playchess.com"]
[Source "ChessBase"]
[SourceQuality "1"]
[TimeControl "180+2"]

1. d4 {[%emt 0:00:00]} d5 {[%emt 0:00:00]} 2. Nf3 {[%emt 0:00:00]} Nf6 {[%emt 0:00:01]} 3. c3 {[%emt 0:00:00]} e6 {[%emt 0:00:06]} 4. Bf4 {[%emt 0:00:01]} Bd6 {[%emt 0:00:03]} 5. Bg3 {[%emt 0:00:01]} Ne4 {[%emt 0:00:04]} 6. Nbd2 {[%emt 0:00:01]} Nxg3 {[%emt 0:00:01]} 7. hxg3 {[%emt 0:00:01]} h6 {[%emt 0:00:06]} 8. e4 {[%emt 0:00:07]} c5 {[%emt 0:00:14]} 9. Bb5+ {[%emt 0:00:08]} Nc6 {[%emt 0:00:06]} 10. exd5 {[%emt 0:00:18]} exd5 {[%emt 0:00:02]} 11. O-O {[%emt 0:00:02]} O-O {[%emt 0:00:03]} 12. dxc5 {[%emt 0:00:02]} Bxc5 {[%emt 0:00:01]} 13. Nb3 {[%emt 0:00:01]} Bb6 {[%emt 0:00:02]} 14. a4 {[%emt 0:00:13]} a6 {[%emt 0:00:06]} 15. Bxc6 {[%emt 0:00:02]} bxc6 {[%emt 0:00:01]} 16. a5 {[%emt 0:00:00]} Ba7 {[%emt 0:00:03]} 17. Nbd4 {[%emt 0:00:31]} Qd6 {[%emt 0:00:16]} 18. Nh4 {[%emt 0:00:09]} g6 {[%emt 0:00:27]} 19. Qd2 {[%emt 0:00:22]} c5 {[%emt 0:00:07]} 20. Nc2 {[%emt 0:00:12]} Kh7 {[%emt 0:00:08]} 21. Rad1 {[%emt 0:00:01]} Be6 {[%emt 0:00:03]} 22. Nf3 {[%emt 0:00:33]} Rfd8 {[%emt 0:00:06]} 23. b4 {[%emt 0:00:06]} Rac8 {[%emt 0:00:10]} 24. bxc5 {[%emt 0:00:14]} Qxc5 {[%emt 0:00:01]} 25. Ncd4 {[%emt 0:00:01]} Qxc3 {[%emt 0:00:44]} 26. Qf4 {[%emt 0:00:01]} Qc7 {[%emt 0:00:10]} 27. Qf6 {[%emt 0:00:00]} Re8 {[%emt 0:00:10]} 28. Ne5 {[%emt 0:00:20]} Bxd4 {[%emt 0:00:13]} 29. Rxd4 {[%emt 0:00:01]} Qe7 {[%emt 0:00:01]} 30. Qf3 {[%emt 0:00:12]} Rc5 {[%emt 0:00:03]} 31. Rfd1 {[%emt 0:00:16]} Rec8 {[%emt 0:00:10]} 32. Qe3 {[%emt 0:00:01]} Qg5 {[%emt 0:00:04]} 33. f4 {[%emt 0:00:00]} Qf6 {[%emt 0:00:06]} 34. R4d2 {[%emt 0:00:06]} Rxa5 {[%emt 0:00:05]} 35. Qd4 {[%emt 0:00:02]} Rac5 {[%emt 0:00:02]} 36. Ra2 {[%emt 0:00:02]} Rc1 {[%emt 0:00:01]} 37. Rxa6 {[%emt 0:00:03]} Rxd1+ 38. Qxd1 {[%emt 0:00:01]} Qf5 {[%emt 0:00:02]} 39. Ra2 {[%emt 0:00:04]} Qe4 {[%emt 0:00:02]} 40. Re2 {[%emt 0:00:00]} Qb4 {[%emt 0:00:02]} 41. Rd2 {[%emt 0:00:03]} Qc5+ {[%emt 0:00:02]} 42. Kh2 {[%emt 0:00:00]} Qc1 {[%emt 0:00:02]} 43. Qe2 {[%emt 0:00:02]} Qb1 {[%emt 0:00:02]} 44. Rb2 {[%emt 0:00:04]} Qe4 {[%emt 0:00:02]} 45. Qd2 {[%emt 0:00:01]} d4 {[%emt 0:00:03]} 46. Rb4 {[%emt 0:00:03]} Rc2 {[%emt 0:00:03]} 47. Rxd4 {[%emt 0:00:02]} Rxd2 {[%emt 0:00:03]} 48. Rxe4 {[%emt 0:00:00]} Bd5 {[%emt 0:00:00]} 49. Re1 {[%emt 0:00:05]} Rxg2+ {[%emt 0:00:01]} 50. Kh3 {[%emt 0:00:00]} Rd2 {[%emt 0:00:02]} 51. g4 {[%emt 0:00:04]} Be6 {[%emt 0:00:02]} 52. Kg3 {[%emt 0:00:01]} Kg7 {[%emt 0:00:02]} 53. Re3 {[%emt 0:00:02]} Rb2 {[%emt 0:00:01]} 54. Rd3 {[%emt 0:00:02]} Kf6 55. Nf3 {[%emt 0:00:02]} Rb1 {[%emt 0:00:08]} 56. g5+ {[%emt 0:00:03]} hxg5 {[%emt 0:00:01]} 57. fxg5+ {[%emt 0:00:00]} Kg7 {[%emt 0:00:01]} 58. Rd4 {[%emt 0:00:04]} Rb3 {[%emt 0:00:01]} 59. Kf4 {[%emt 0:00:00]} Rb5 {[%emt 0:00:02]} 60. Ne5 {[%emt 0:00:02]} Rb1 61. Nf3 {[%emt 0:00:02]} Rf1 {[%emt 0:00:04]} 62. Ke3 {[%emt 0:00:02]} Bc8 {[%emt 0:00:02]} 63. Rb4 {[%emt 0:00:01]} Bd7 {[%emt 0:00:04]} 64. Rc4 Bb5 65. Rc5 {[%emt 0:00:05]} Ba4 {[%emt 0:00:02]} 66. Rc7 {[%emt 0:00:02]} Bd1 {[%emt 0:00:02]} 67. Nd4 Bg4 68. Ke4 {[%emt 0:00:05]} Bh3 {[%emt 0:00:05]} 69. Ra7 {[%emt 0:00:02]} Rf2 {[%emt 0:00:02]} 70. Ke3 {[%emt 0:00:01]} Rf1 {[%emt 0:00:01]} 71. Nf3 {[%emt 0:00:03]} Bg4 {[%emt 0:00:02]} 72. Nd4 {[%emt 0:00:02]} Bh3 {[%emt 0:00:03]} 1/2-1/2

[Event "RUS-ch Men Blitz 2019"]
[Site "Sochi"]
[Date "2019.10.17"]
[Round "9.8"]
[White "Triapishko, Alexandr"]
[Black "Nozdrachev, Vladislav"]
[Result "1/2-1/2"]
[ECO "A05"]
[WhiteElo "2514"]
[BlackElo "2494"]
[Annotator "ChessBase"]
[PlyCount "95"]
[EventDate "2019.10.17"]
[EventType "swiss"]
[EventCountry "RUS"]
[SourceTitle "playchess.com"]
[Source "ChessBase"]
[SourceQuality "1"]
[TimeControl "180+2"]

1. Nf3 {[%emt 0:00:10]} Nf6 {[%emt 0:00:00]} 2. g3 {[%emt 0:00:01]} d5 {[%emt 0:00:00]} 3. Bg2 e6 4. O-O {[%emt 0:00:04]} Be7 {[%emt 0:00:01]} 5. b3 {[%emt 0:00:01]} O-O {[%emt 0:00:06]} 6. Bb2 {[%emt 0:00:01]} b6 {[%emt 0:00:03]} 7. c4 {[%emt 0:00:03]} Bb7 {[%emt 0:00:01]} 8. e3 {[%emt 0:00:08]} c5 {[%emt 0:00:04]} 9. Nc3 {[%emt 0:00:04]} Nbd7 {[%emt 0:00:12]} 10. cxd5 {[%emt 0:00:14]} Nxd5 {[%emt 0:00:01]} 11. Nxd5 {[%emt 0:00:02]} Bxd5 {[%emt 0:00:01]} 12. d4 {[%emt 0:00:02]} Qc8 {[%emt 0:00:07]} 13. Qe2 {[%emt 0:00:09]} Qb7 {[%emt 0:00:02]} 14. Rfe1 {[%emt 0:00:42]} Nf6 {[%emt 0:00:09]} 15. dxc5 {[%emt 0:00:03]} bxc5 {[%emt 0:00:07]} 16. Bxf6 {[%emt 0:00:36]} Bxf6 {[%emt 0:00:01]} 17. Rac1 {[%emt 0:00:01]} Qb6 {[%emt 0:00:16]} 18. Nd2 {[%emt 0:00:05]} a5 {[%emt 0:00:10]} 19. Nc4 {[%emt 0:00:20]} Qa6 {[%emt 0:00:08]} 20. Nd2 {[%emt 0:00:28]} Qa7 {[%emt 0:00:54]} 21. e4 {[%emt 0:00:10]} Bb7 {[%emt 0:00:02]} 22. e5 {[%emt 0:00:01]} Be7 {[%emt 0:00:03]} 23. Bxb7 {[%emt 0:00:03]} Qxb7 {[%emt 0:00:01]} 24. Qe4 {[%emt 0:00:05]} Qb4 {[%emt 0:00:12]} 25. Qxb4 {[%emt 0:00:07]} axb4 {[%emt 0:00:01]} 26. Rc2 {[%emt 0:00:00]} Rfd8 {[%emt 0:00:02]} 27. Nc4 {[%emt 0:00:05]} g5 {[%emt 0:00:05]} 28. Kg2 {[%emt 0:00:03]} Kg7 {[%emt 0:00:02]} 29. h3 {[%emt 0:00:04]} Ra7 {[%emt 0:00:01]} 30. Kf3 {[%emt 0:00:01]} Rd5 {[%emt 0:00:02]} 31. Ree2 {[%emt 0:00:04]} Kg6 {[%emt 0:00:01]} 32. Kg2 {[%emt 0:00:02]} h5 {[%emt 0:00:01]} 33. Kf3 {[%emt 0:00:01]} Bf8 {[%emt 0:00:06]} 34. Kg2 {[%emt 0:00:01]} Bg7 {[%emt 0:00:01]} 35. f4 {[%emt 0:00:04]} gxf4 {[%emt 0:00:09]} 36. gxf4 {[%emt 0:00:00]} Rd4 {[%emt 0:00:02]} 37. Kf3 {[%emt 0:00:02]} Bh6 {[%emt 0:00:03]} 38. Re4 {[%emt 0:00:02]} Rad7 {[%emt 0:00:02]} 39. Nd6 {[%emt 0:00:04]} Rxe4 {[%emt 0:00:24]} 40. Kxe4 {[%emt 0:00:01]} f5+ {[%emt 0:00:01]} 41. Ke3 {[%emt 0:00:04]} Bf8 {[%emt 0:00:02]} 42. Rxc5 {[%emt 0:00:01]} Bxd6 {[%emt 0:00:01]} 43. exd6 {[%emt 0:00:01]} Rxd6 {[%emt 0:00:00]} 44. Rb5 {[%emt 0:00:03]} Ra6 {[%emt 0:00:01]} 45. Rxb4 {[%emt 0:00:01]} Rxa2 {[%emt 0:00:01]} 46. Kf3 {[%emt 0:00:03]} Rc2 {[%emt 0:00:02]} 47. h4 {[%emt 0:00:03]} Rc3+ {[%emt 0:00:00]} 48. Kg2 {[%emt 0:00:00]} 1/2-1/2

[Event "RUS-ch Men Blitz 2019"]
[Site "Sochi"]
[Date "2019.10.17"]
[Round "9.10"]
[White "Bocharov, Dmitry"]
[Black "Gubsky, Egor"]
[Result "1-0"]
[ECO "A05"]
[WhiteElo "2519"]
[BlackElo "2339"]
[Annotator "ChessBase"]
[PlyCount "55"]
[EventDate "2019.10.17"]
[EventType "swiss"]
[EventCountry "RUS"]
[SourceTitle "playchess.com"]
[Source "ChessBase"]
[SourceQuality "1"]
[TimeControl "180+2"]

1. Nf3 {[%emt 0:00:00]} Nf6 {[%emt 0:00:00]} 2. g3 {[%emt 0:00:02]} b6 {[%emt 0:00:01]} 3. Bg2 {[%emt 0:00:02]} Bb7 {[%emt 0:00:01]} 4. O-O {[%emt 0:00:02]} e6 {[%emt 0:00:02]} 5. c4 {[%emt 0:00:05]} Be7 {[%emt 0:00:01]} 6. Nc3 {[%emt 0:00:04]} O-O {[%emt 0:00:03]} 7. Re1 {[%emt 0:00:01]} c5 {[%emt 0:00:05]} 8. e4 {[%emt 0:00:02]} d6 {[%emt 0:00:02]} 9. d4 {[%emt 0:00:02]} cxd4 {[%emt 0:00:03]} 10. Nxd4 {[%emt 0:00:02]} Qc8 {[%emt 0:00:02]} 11. Be3 {[%emt 0:00:10]} a6 {[%emt 0:00:07]} 12. Rc1 {[%emt 0:00:02]} Nbd7 {[%emt 0:00:04]} 13. f4 {[%emt 0:00:01]} Re8 {[%emt 0:00:19]} 14. Bf2 {[%emt 0:00:06]} Bf8 {[%emt 0:00:08]} 15. e5 {[%emt 0:00:21]} Bxg2 {[%emt 0:00:25]} 16. Kxg2 {[%emt 0:00:02]} dxe5 {[%emt 0:00:05]} 17. fxe5 {[%emt 0:00:02]} Qxc4 {[%emt 0:00:48]} 18. exf6 {[%emt 0:00:02]} Nxf6 {[%emt 0:00:01]} 19. Qf3 {[%emt 0:00:01]} Rad8 {[%emt 0:00:10]} 20. Ne4 {[%emt 0:00:23]} Qxa2 {[%emt 0:00:02]} 21. Nc6 {[%emt 0:00:41]} Nxe4 {[%emt 0:00:06]} 22. Nxd8 {[%emt 0:00:23]} Ng5 {[%emt 0:00:06]} 23. Qd3 {[%emt 0:00:04]} Qxb2 {[%emt 0:00:51]} 24. h4 {[%emt 0:00:16]} Nh3 {[%emt 0:00:04]} 25. Kxh3 {[%emt 0:00:04]} Qxf2 {[%emt 0:00:02]} 26. Rf1 {[%emt 0:00:04]} Qb2 {[%emt 0:00:04]} 27. Nxf7 {[%emt 0:00:03]} Be7 {[%emt 0:00:05]} 28. Qd7 {[%emt 0:00:09]} 1-0

[Event "RUS-ch Men Blitz 2019"]
[Site "Sochi"]
[Date "2019.10.17"]
[Round "9.11"]
[White "Sadovsky, Artem"]
[Black "Pridorozhni, Aleksei"]
[Result "0-1"]
[ECO "A13"]
[WhiteElo "2411"]
[BlackElo "2599"]
[Annotator "ChessBase"]
[PlyCount "157"]
[EventDate "2019.10.17"]
[EventType "swiss"]
[EventCountry "RUS"]
[SourceTitle "playchess.com"]
[Source "ChessBase"]
[SourceQuality "1"]
[TimeControl "180+2"]

1. c4 {[%emt 0:00:00]} e6 {[%emt 0:00:01]} 2. Nf3 {[%emt 0:00:01]} d5 {[%emt 0:00:01]} 3. g3 {[%emt 0:00:01]} Nf6 {[%emt 0:00:02]} 4. Bg2 {[%emt 0:00:01]} dxc4 {[%emt 0:00:07]} 5. Qa4+ {[%emt 0:00:01]} Bd7 {[%emt 0:00:05]} 6. Qxc4 {[%emt 0:00:01]} Bc6 {[%emt 0:00:01]} 7. O-O {[%emt 0:00:06]} Nbd7 {[%emt 0:00:03]} 8. d3 {[%emt 0:00:09]} Bd6 {[%emt 0:00:05]} 9. b3 {[%emt 0:00:16]} O-O {[%emt 0:00:04]} 10. Qc2 {[%emt 0:00:18]} Ne5 {[%emt 0:00:24]} 11. Nxe5 {[%emt 0:00:14]} Bxe5 {[%emt 0:00:02]} 12. Bb2 {[%emt 0:00:02]} Bxb2 {[%emt 0:00:03]} 13. Qxb2 {[%emt 0:00:01]} Bxg2 {[%emt 0:00:02]} 14. Kxg2 {[%emt 0:00:01]} Re8 {[%emt 0:00:07]} 15. Qe5 {[%emt 0:00:07]} Qd5+ {[%emt 0:00:08]} 16. Qxd5 {[%emt 0:00:01]} exd5 {[%emt 0:00:02]} 17. e3 {[%emt 0:00:05]} a5 {[%emt 0:00:05]} 18. Rc1 {[%emt 0:00:06]} c6 {[%emt 0:00:01]} 19. Nd2 {[%emt 0:00:06]} Red8 {[%emt 0:00:28]} 20. Nf3 {[%emt 0:00:01]} Ne8 {[%emt 0:00:01]} 21. Nd4 {[%emt 0:00:07]} Nc7 {[%emt 0:00:05]} 22. Rc2 {[%emt 0:00:11]} Ne6 {[%emt 0:00:02]} 23. Nxe6 {[%emt 0:00:09]} fxe6 {[%emt 0:00:01]} 24. d4 {[%emt 0:00:06]} Kf7 {[%emt 0:00:01]} 25. Rac1 {[%emt 0:00:05]} Ke7 {[%emt 0:00:08]} 26. a3 {[%emt 0:00:04]} Ra6 {[%emt 0:00:03]} 27. Kf3 {[%emt 0:00:03]} Kd6 {[%emt 0:00:05]} 28. Ke2 {[%emt 0:00:01]} e5 {[%emt 0:00:03]} 29. dxe5+ {[%emt 0:00:04]} Kxe5 {[%emt 0:00:02]} 30. Rc5 {[%emt 0:00:02]} Kd6 {[%emt 0:00:04]} 31. Kd3 {[%emt 0:00:05]} Rb6 {[%emt 0:00:03]} 32. R5c3 {[%emt 0:00:02]} Rc8 {[%emt 0:00:15]} 33. e4 {[%emt 0:00:07]} Rb5 {[%emt 0:00:05]} 34. exd5 {[%emt 0:00:09]} Rxd5+ {[%emt 0:00:02]} 35. Ke2 {[%emt 0:00:00]} Re8+ {[%emt 0:00:05]} 36. Re3 {[%emt 0:00:04]} Rxe3+ {[%emt 0:00:05]} 37. Kxe3 {[%emt 0:00:01]} b5 {[%emt 0:00:04]} 38. f4 {[%emt 0:00:03]} c5 {[%emt 0:00:06]} 39. g4 {[%emt 0:00:02]} Rd4 {[%emt 0:00:05]} 40. h3 {[%emt 0:00:08]} Kd5 {[%emt 0:00:04]} 41. f5 {[%emt 0:00:06]} a4 {[%emt 0:00:04]} 42. bxa4 {[%emt 0:00:21]} Rxa4 {[%emt 0:00:01]} 43. Rd1+ {[%emt 0:00:04]} Ke5 {[%emt 0:00:07]} 44. Rd3 {[%emt 0:00:03]} c4 {[%emt 0:00:02]} 45. Rc3 {[%emt 0:00:04]} Ra6 {[%emt 0:00:03]} 46. h4 {[%emt 0:00:09]} h5 {[%emt 0:00:18]} 47. gxh5 {[%emt 0:00:01]} Kxf5 {[%emt 0:00:03]} 48. Kd4 {[%emt 0:00:02]} Rd6+ {[%emt 0:00:01]} 49. Kc5 {[%emt 0:00:04]} Rd3 {[%emt 0:00:01]} 50. Rc1 {[%emt 0:00:01]} Rb3 {[%emt 0:00:01]} 51. a4 {[%emt 0:00:07]} bxa4 {[%emt 0:00:03]} 52. Kxc4 {[%emt 0:00:01]} Rh3 {[%emt 0:00:05]} 53. Rf1+ {[%emt 0:00:04]} Ke5 {[%emt 0:00:03]} 54. Re1+ {[%emt 0:00:09]} Kf6 {[%emt 0:00:02]} 55. Re4 {[%emt 0:00:06]} a3 {[%emt 0:00:01]} 56. Kd5 {[%emt 0:00:01]} a2 {[%emt 0:00:06]} 57. Ra4 {[%emt 0:00:01]} Rh2 {[%emt 0:00:01]} 58. Rf4+ {[%emt 0:00:04]} Ke7 59. Ra4 Re2 {[%emt 0:00:04]} 60. Ra6 {[%emt 0:00:03]} Kf7 {[%emt 0:00:02]} 61. Kd4 {[%emt 0:00:03]} Kg8 {[%emt 0:00:04]} 62. Kd3 {[%emt 0:00:00]} Rh2 {[%emt 0:00:01]} 63. Ke3 {[%emt 0:00:11]} Kf7 {[%emt 0:00:03]} 64. Kf3 {[%emt 0:00:04]} Ke7 {[%emt 0:00:02]} 65. Kg4 {[%emt 0:00:05]} Rg2+ {[%emt 0:00:02]} 66. Kf3 {[%emt 0:00:02]} Rc2 {[%emt 0:00:03]} 67. Kg4 {[%emt 0:00:02]} Kd7 {[%emt 0:00:05]} 68. Kg5 {[%emt 0:00:02]} Rg2+ {[%emt 0:00:01]} 69. Kf5 {[%emt 0:00:00]} Kc7 {[%emt 0:00:01]} 70. Ra3 {[%emt 0:00:05]} Kc6 {[%emt 0:00:02]} 71. Ra8 {[%emt 0:00:01]} Kc5 {[%emt 0:00:03]} 72. Rc8+ {[%emt 0:00:01]} Kb4 {[%emt 0:00:02]} 73. Rb8+ {[%emt 0:00:02]} Kc3 {[%emt 0:00:01]} 74. Rc8+ {[%emt 0:00:03]} Kb2 {[%emt 0:00:02]} 75. Rb8+ {[%emt 0:00:02]} Kc1 {[%emt 0:00:01]} 76. Ra8 {[%emt 0:00:01]} Kb1 {[%emt 0:00:01]} 77. Rb8+ {[%emt 0:00:03]} Rb2 {[%emt 0:00:02]} 78. Ra8 {[%emt 0:00:01]} Rb6 {[%emt 0:00:03]} 79. Ra7 {[%emt 0:00:08]} 0-1

[Event "RUS-ch Men Blitz 2019"]
[Site "Sochi"]
[Date "2019.10.17"]
[Round "9.12"]
[White "Timofeev, Artyom"]
[Black "Savitskiy, Sergey"]
[Result "1-0"]
[ECO "A15"]
[WhiteElo "2595"]
[BlackElo "2407"]
[Annotator "ChessBase"]
[PlyCount "75"]
[EventDate "2019.10.17"]
[EventType "swiss"]
[EventCountry "RUS"]
[SourceTitle "playchess.com"]
[Source "ChessBase"]
[SourceQuality "1"]
[TimeControl "180+2"]

1. c4 {[%emt 0:00:00]} Nf6 {[%emt 0:00:00]} 2. e3 {[%emt 0:00:00]} g6 {[%emt 0:00:00]} 3. Be2 {[%emt 0:00:02]} Bg7 {[%emt 0:00:00]} 4. h4 {[%emt 0:00:01]} h5 {[%emt 0:00:01]} 5. Nc3 {[%emt 0:00:01]} O-O {[%emt 0:00:05]} 6. Nf3 {[%emt 0:00:02]} c6 {[%emt 0:00:04]} 7. b3 {[%emt 0:00:08]} d5 {[%emt 0:00:01]} 8. Bb2 {[%emt 0:00:01]} Bg4 {[%emt 0:00:05]} 9. cxd5 {[%emt 0:00:11]} cxd5 {[%emt 0:00:01]} 10. Ng5 {[%emt 0:00:01]} Bxe2 {[%emt 0:00:07]} 11. Nxe2 {[%emt 0:00:02]} Nc6 {[%emt 0:00:04]} 12. O-O {[%emt 0:00:06]} e5 {[%emt 0:00:10]} 13. Rc1 {[%emt 0:00:01]} Nh7 {[%emt 0:00:13]} 14. Nxh7 {[%emt 0:00:05]} Kxh7 {[%emt 0:00:02]} 15. g3 {[%emt 0:00:01]} Qd7 {[%emt 0:00:18]} 16. Kh2 {[%emt 0:00:04]} Rae8 {[%emt 0:00:09]} 17. Ng1 {[%emt 0:00:26]} Bh6 {[%emt 0:00:03]} 18. Nh3 {[%emt 0:00:04]} f6 {[%emt 0:00:08]} 19. b4 {[%emt 0:00:14]} Nxb4 {[%emt 0:00:51]} 20. Ba3 a5 21. Bxb4 {[%emt 0:00:05]} axb4 {[%emt 0:00:01]} 22. Qb3 {[%emt 0:00:01]} g5 {[%emt 0:00:08]} 23. Qxb4 {[%emt 0:00:02]} g4 {[%emt 0:00:03]} 24. Ng1 {[%emt 0:00:01]} Rf7 {[%emt 0:00:08]} 25. Ne2 {[%emt 0:00:02]} Bf8 {[%emt 0:00:00]} 26. Qb1+ {[%emt 0:00:03]} Kg7 {[%emt 0:00:10]} 27. d4 {[%emt 0:00:02]} Bd6 {[%emt 0:00:11]} 28. Rcd1 {[%emt 0:00:11]} Bb8 {[%emt 0:00:14]} 29. dxe5 {[%emt 0:00:07]} fxe5 {[%emt 0:00:01]} 30. Qb3 {[%emt 0:00:01]} Ref8 {[%emt 0:00:06]} 31. Kg1 {[%emt 0:00:02]} d4 {[%emt 0:00:09]} 32. exd4 {[%emt 0:00:05]} e4 {[%emt 0:00:04]} 33. d5 {[%emt 0:00:11]} Be5 {[%emt 0:00:01]} 34. d6 {[%emt 0:00:01]} Rf3 {[%emt 0:00:05]} 35. Qd5 {[%emt 0:00:01]} Re8 {[%emt 0:00:12]} 36. Nd4 {[%emt 0:00:09]} Rf6 {[%emt 0:00:05]} 37. Qb5 {[%emt 0:00:33]} Rd8 {[%emt 0:00:06]} 38. Qxe5 {[%emt 0:00:05]} 1-0

[Event "RUS-ch Men Blitz 2019"]
[Site "Sochi"]
[Date "2019.10.17"]
[Round "9.13"]
[White "Gutenev, Alexander"]
[Black "Kokarev, Dmitry"]
[Result "1-0"]
[ECO "B90"]
[WhiteElo "2469"]
[BlackElo "2593"]
[Annotator "ChessBase"]
[PlyCount "85"]
[EventDate "2019.10.17"]
[EventType "swiss"]
[EventCountry "RUS"]
[SourceTitle "playchess.com"]
[Source "ChessBase"]
[SourceQuality "1"]
[TimeControl "180+2"]

1. e4 {[%emt 0:00:00]} c5 {[%emt 0:00:00]} 2. Nf3 {[%emt 0:00:05]} d6 {[%emt 0:00:00]} 3. d4 {[%emt 0:00:01]} Nf6 {[%emt 0:00:01]} 4. Nc3 {[%emt 0:00:01]} cxd4 {[%emt 0:00:01]} 5. Nxd4 {[%emt 0:00:01]} a6 {[%emt 0:00:01]} 6. h3 {[%emt 0:00:02]} e5 {[%emt 0:00:03]} 7. Nb3 {[%emt 0:00:02]} Be6 {[%emt 0:00:03]} 8. f4 {[%emt 0:00:01]} g6 {[%emt 0:00:09]} 9. Qf3 {[%emt 0:00:14]} Nc6 {[%emt 0:00:13]} 10. Be3 {[%emt 0:00:05]} exf4 {[%emt 0:00:02]} 11. Bxf4 {[%emt 0:00:02]} Ne5 {[%emt 0:00:05]} 12. Qf2 {[%emt 0:00:16]} Nh5 {[%emt 0:00:22]} 13. Bh2 {[%emt 0:00:25]} Bh6 {[%emt 0:00:05]} 14. Be2 {[%emt 0:00:14]} O-O {[%emt 0:00:12]} 15. Bxh5 {[%emt 0:00:10]} gxh5 {[%emt 0:00:01]} 16. O-O {[%emt 0:00:12]} Nc4 {[%emt 0:00:02]} 17. Kh1 {[%emt 0:00:18]} Nxb2 {[%emt 0:00:12]} 18. Nd4 {[%emt 0:00:03]} Nc4 {[%emt 0:00:07]} 19. Nd5 {[%emt 0:00:11]} Kh8 {[%emt 0:00:15]} 20. Nf5 {[%emt 0:00:10]} Bxf5 {[%emt 0:00:17]} 21. exf5 {[%emt 0:00:17]} Re8 {[%emt 0:00:13]} 22. Qd4+ {[%emt 0:00:24]} Ne5 {[%emt 0:00:02]} 23. Rae1 {[%emt 0:00:01]} f6 {[%emt 0:00:02]} 24. Qh4 {[%emt 0:00:04]} Bg7 {[%emt 0:00:13]} 25. Nf4 {[%emt 0:00:04]} Rc8 {[%emt 0:00:06]} 26. Ne6 {[%emt 0:00:11]} Qd7 {[%emt 0:00:04]} 27. Qxh5 {[%emt 0:00:04]} Rxc2 {[%emt 0:00:04]} 28. Rf4 {[%emt 0:00:04]} Qf7 {[%emt 0:00:05]} 29. Qd1 {[%emt 0:00:03]} Rec8 {[%emt 0:00:08]} 30. Rh4 {[%emt 0:00:03]} b5 {[%emt 0:00:22]} 31. Qxd6 {[%emt 0:00:01]} Rc1 {[%emt 0:00:01]} 32. Rhe4 {[%emt 0:00:01]} Rxe1+ {[%emt 0:00:04]} 33. Rxe1 {[%emt 0:00:01]} Kg8 {[%emt 0:00:02]} 34. Qxa6 {[%emt 0:00:02]} Qd7 {[%emt 0:00:04]} 35. Bxe5 {[%emt 0:00:07]} fxe5 {[%emt 0:00:01]} 36. Nxg7 {[%emt 0:00:02]} Kxg7 {[%emt 0:00:01]} 37. Re3 {[%emt 0:00:04]} Qxf5 {[%emt 0:00:06]} 38. Qb7+ {[%emt 0:00:03]} Kh8 {[%emt 0:00:03]} 39. Rf3 {[%emt 0:00:01]} Qe6 {[%emt 0:00:02]} 40. Rf7 {[%emt 0:00:02]} Rc1+ 41. Kh2 Kg8 {[%emt 0:00:15]} 42. Rg7+ {[%emt 0:00:04]} Kf8 {[%emt 0:00:01]} 43. Rxh7 {[%emt 0:00:01]} 1-0

[Event "RUS-ch Men Blitz 2019"]
[Site "Sochi"]
[Date "2019.10.17"]
[Round "9.14"]
[White "Bryakin, Mikhail"]
[Black "Savchenko, Boris"]
[Result "0-1"]
[ECO "A41"]
[WhiteElo "2440"]
[BlackElo "2581"]
[Annotator "ChessBase"]
[PlyCount "128"]
[EventDate "2019.10.17"]
[EventType "swiss"]
[EventCountry "RUS"]
[SourceTitle "playchess.com"]
[Source "ChessBase"]
[SourceQuality "1"]
[TimeControl "180+2"]

1. d4 {[%emt 0:00:00]} d6 {[%emt 0:00:00]} 2. Nf3 {[%emt 0:00:01]} Nd7 {[%emt 0:00:02]} 3. c4 {[%emt 0:00:04]} e5 {[%emt 0:00:02]} 4. Nc3 {[%emt 0:00:01]} Ngf6 {[%emt 0:00:01]} 5. d5 {[%emt 0:00:06]} g6 {[%emt 0:00:06]} 6. e4 {[%emt 0:00:01]} Nc5 {[%emt 0:00:01]} 7. Bd3 {[%emt 0:00:09]} Nxd3+ {[%emt 0:00:05]} 8. Qxd3 {[%emt 0:00:01]} c6 {[%emt 0:00:01]} 9. h3 {[%emt 0:00:03]} a6 {[%emt 0:00:07]} 10. O-O {[%emt 0:00:03]} cxd5 {[%emt 0:00:02]} 11. cxd5 {[%emt 0:00:02]} b5 {[%emt 0:00:04]} 12. b4 {[%emt 0:00:01]} Bd7 {[%emt 0:00:05]} 13. Be3 {[%emt 0:00:03]} Be7 {[%emt 0:00:08]} 14. Rfc1 {[%emt 0:00:03]} O-O {[%emt 0:00:02]} 15. a4 {[%emt 0:00:05]} bxa4 {[%emt 0:00:02]} 16. Nxa4 {[%emt 0:00:06]} Bb5 {[%emt 0:00:05]} 17. Qb1 {[%emt 0:00:03]} Qb8 {[%emt 0:00:09]} 18. Nb6 {[%emt 0:00:09]} Ra7 {[%emt 0:00:01]} 19. Nc8 {[%emt 0:00:05]} Rb7 {[%emt 0:00:04]} 20. Nxe7+ {[%emt 0:00:07]} Rxe7 {[%emt 0:00:01]} 21. Bg5 {[%emt 0:00:35]} Kg7 {[%emt 0:00:01]} 22. Qc2 {[%emt 0:00:15]} h6 {[%emt 0:00:03]} 23. Bxf6+ {[%emt 0:00:09]} Kxf6 {[%emt 0:00:01]} 24. Nd2 {[%emt 0:00:11]} Ree8 {[%emt 0:00:42]} 25. Nb3 {[%emt 0:00:02]} Rc8 {[%emt 0:00:02]} 26. Qd2 {[%emt 0:00:01]} Kg7 {[%emt 0:00:11]} 27. Na5 {[%emt 0:00:01]} Qb6 {[%emt 0:00:11]} 28. Nb3 {[%emt 0:00:22]} Rxc1+ {[%emt 0:00:10]} 29. Rxc1 {[%emt 0:00:01]} f5 {[%emt 0:00:01]} 30. exf5 {[%emt 0:00:04]} gxf5 {[%emt 0:00:03]} 31. Rc3 {[%emt 0:00:04]} f4 {[%emt 0:00:01]} 32. Qc2 {[%emt 0:00:09]} Rf7 {[%emt 0:00:05]} 33. Qe4 {[%emt 0:00:14]} Bd7 {[%emt 0:00:07]} 34. Qc4 {[%emt 0:00:07]} Kf6 {[%emt 0:00:14]} 35. Nd2 {[%emt 0:00:02]} Bf5 {[%emt 0:00:15]} 36. Ne4+ {[%emt 0:00:24]} Kg7 {[%emt 0:00:05]} 37. Nd2 {[%emt 0:00:04]} Rb7 {[%emt 0:00:03]} 38. Qc6 {[%emt 0:00:10]} Kf6 {[%emt 0:00:37]} 39. Nc4 {[%emt 0:00:06]} Qxb4 {[%emt 0:00:08]} 40. Nxd6 {[%emt 0:00:02]} Rb6 {[%emt 0:00:04]} 41. Ne8+ {[%emt 0:00:02]} Ke7 {[%emt 0:00:02]} 42. Qc7+ {[%emt 0:00:03]} Bd7 {[%emt 0:00:05]} 43. d6+ {[%emt 0:00:01]} Kxe8 {[%emt 0:00:02]} 44. Rc5 {[%emt 0:00:01]} Qb1+ {[%emt 0:00:02]} 45. Kh2 {[%emt 0:00:01]} Qb2 {[%emt 0:00:01]} 46. Qa7 {[%emt 0:00:04]} Rb8 {[%emt 0:00:01]} 47. Rc7 {[%emt 0:00:01]} Rd8 {[%emt 0:00:01]} 48. Qc5 {[%emt 0:00:02]} Qd4 {[%emt 0:00:01]} 49. Qc2 {[%emt 0:00:02]} e4 {[%emt 0:00:03]} 50. Qa2 {[%emt 0:00:01]} Kf8 {[%emt 0:00:01]} 51. Qa5 {[%emt 0:00:03]} Qxd6 {[%emt 0:00:02]} 52. Rc5 {[%emt 0:00:02]} Be6 {[%emt 0:00:02]} 53. Rh5 {[%emt 0:00:02]} f3+ 54. g3 Bf7 {[%emt 0:00:04]} 55. Rf5 {[%emt 0:00:02]} Re8 {[%emt 0:00:01]} 56. Qc3 {[%emt 0:00:03]} Kg8 {[%emt 0:00:02]} 57. Rf4 {[%emt 0:00:01]} Qe5 {[%emt 0:00:02]} 58. Rg4+ {[%emt 0:00:00]} Kh7 {[%emt 0:00:02]} 59. Qc6 {[%emt 0:00:01]} Re7 {[%emt 0:00:02]} 60. Rf4 {[%emt 0:00:07]} Bg6 {[%emt 0:00:02]} 61. Rf6 {[%emt 0:00:01]} Rg7 {[%emt 0:00:02]} 62. Rf8 {[%emt 0:00:03]} Qd4 {[%emt 0:00:01]} 63. Kg1 {[%emt 0:00:02]} Qd1+ {[%emt 0:00:02]} 64. Kh2 {[%emt 0:00:00]} Qf1 {[%emt 0:00:01]} 0-1